fUSD/lending_fUSD_20250219
["ID","MTS","AMOUNT","RATE_DAILY","PERIOD"]
[353695839,1739991130418,-837.8,0.00012517,2]
[353695840,1739991130433,-687.97,0.00012517,2]
[353695841,1739991130447,-524.85,0.00012517,2]
[353695842,1739991130464,-763.25,0.00012517,2]
[353695843,1739991130480,-1453.26,0.00012517,2]
[353695844,1739991130495,-2178.41,0.00012517,2]
[353695845,1739991130511,-2978.68,0.00012517,2]
[353695846,1739991130527,-867.64,0.00012517,2]
[353695847,1739991130544,-909.17,0.00012517,2]
[353695848,1739991130560,-944.41,0.00012517,2]
[353695849,1739991130575,-1335.65,0.00012517,2]
[353695850,1739991130589,-1536.77,0.00012517,2]
[353695851,1739991130604,-1667.3,0.00012517,2]
[353695852,1739991130619,-2300.26,0.00012517,2]
[353695853,1739991130633,-1054.96,0.00012517,2]
[353695854,1739991130649,-3967.01,0.00012517,2]
[353695855,1739991130662,-2151.49,0.00012517,2]
[353695856,1739991130676,-500.0,0.00012517,2]
[353695857,1739991130690,-1026.98,0.00012517,2]
[353695858,1739991130705,-1717.95,0.00012517,2]
[353695859,1739991130719,-723.0,0.00012517,2]
[353695860,1739991130737,-858.82,0.00012517,2]
[353695861,1739991130752,-736.71,0.00012517,2]
[353695862,1739991130768,-731.07,0.00012517,2]
[353695863,1739991130784,-808.06,0.00012517,2]
[353695864,1739991130799,-500.0,0.00012517,2]
[353695865,1739991130813,-1003.52,0.00012517,2]
[353695866,1739991130829,-642.44075134,0.00012517,2]
[353695867,1739991130844,-1216.45,0.00012517,2]
[353695868,1739991131091,-897.65,0.00012517,2]
[353695869,1739991131110,-969.77,0.00012517,2]
[353695870,1739991131121,-1228.25,0.00012517,2]
[353695871,1739991131131,-597.7,0.00012517,2]
[353695872,1739991131141,-500.0,0.00012517,2]
[353695873,1739991131151,-2264.91,0.00012517,2]
[353695874,1739991131162,-1031.26,0.00012517,2]
[353695875,1739991131172,-813.49,0.00012517,2]
[353695876,1739991131182,-807.9,0.00012517,2]
[353695877,1739991131192,-952.43,0.00012517,2]
[353695878,1739991131202,-1249.19,0.00012517,2]
[353695879,1739991131212,-943.59,0.00012517,2]
[353695880,1739991131221,-1931.39,0.00012517,2]
[353695881,1739991131231,-699.69,0.00012517,2]
[353695882,1739991131241,-736.37,0.00012517,2]
[353695883,1739991131250,-1349.59,0.00012517,2]
[353695884,1739991131259,-2136.43,0.00012517,2]
[353695885,1739991131269,-763.21,0.00012517,2]
[353695886,1739991131279,-1308.13,0.00012517,2]
[353695887,1739991131289,-676.6,0.00012517,2]
[353695888,1739991131299,-1669.19,0.00012517,2]
[353695889,1739991131309,-2496.14,0.00012517,2]
[353695890,1739991131319,-838.79,0.00012517,2]
[353695891,1739991131330,-844.7,0.00012517,2]
[353695892,1739991131341,-1038.95,0.00012517,2]
[353695893,1739991131350,-643.34,0.00012517,2]
[353695894,1739991131360,-862.23,0.00012517,2]
[353695895,1739991131370,-1682.85,0.00012517,2]
[353695896,1739991131381,-1170.77,0.00012517,2]
[353695897,1739991131391,-972.98,0.00012517,2]
[353695898,1739991131401,-1036.38,0.00012517,2]
[353695899,1739991131411,-665.65,0.00012517,2]
[353695900,1739991131420,-448.6703169,0.00012517,2]
[353695901,1739991131430,-816.32,0.00012517,2]
[353695902,1739991131439,-1472.21,0.00012517,2]
[353695903,1739991131449,-1143.91,0.00012517,2]
[353695904,1739991131461,-500.0,0.00012517,2]
[353695905,1739991131472,-7684.69,0.00012517,2]
[353695906,1739991131483,-1239.55,0.00012517,2]
[353695907,1739991131493,-1609.82,0.00012517,2]
[353695908,1739991131503,-694.56,0.00012517,2]
[353695909,1739991131515,-677.2,0.00012517,2]
[353695910,1739991131526,-1545.54,0.00012517,2]
[353695911,1739991131536,-1349.76,0.00012517,2]
[353695912,1739991131545,-1288.85,0.00012517,2]
[353695913,1739991131555,-591.57,0.00012517,2]
[353695914,1739991131565,-1045.64,0.00012517,2]
[353695915,1739991131576,-544.71,0.00012517,2]
[353695916,1739991131586,-515.07,0.00012517,2]
[353695917,1739991131596,-500.0,0.00012517,2]
[353695918,1739991131605,-864.21,0.00012517,2]
[353695919,1739991131615,-1217.73,0.00012517,2]
[353695920,1739991131624,-1242.44,0.00012517,2]
[353695921,1739991131635,-608.9,0.00012517,2]
[353695922,1739991131645,-500.0,0.00012517,2]
[353695923,1739991131654,-1333.33,0.00012517,2]
[353695924,1739991131664,-2099.28,0.00012517,2]
[353695925,1739991131674,-646.88,0.00012517,2]
[353695926,1739991131684,-1098.74,0.00012517,2]
[353695927,1739991131694,-631.78,0.00012517,2]
[353695928,1739991131704,-1305.78,0.00012517,2]
[353695929,1739991131713,-814.94,0.00012517,2]
[353695930,1739991131722,-591.42,0.00012517,2]
[353695931,1739991131732,-500.0,0.00012517,2]
[353695932,1739991131742,-1698.82,0.00012517,2]
[353695933,1739991131752,-1656.29,0.00012517,2]
[353695934,1739991131762,-958.07,0.00012517,2]
[353695935,1739991131772,-1140.78,0.00012517,2]
[353695936,1739991131782,-1343.79,0.00012517,2]
[353695937,1739991131791,-1109.34,0.00012517,2]
[353695938,1739991131801,-940.17,0.00012517,2]
[353695939,1739991131810,-3616.83,0.00012517,2]
[353695940,1739991131820,-1068.94,0.00012517,2]
[353695941,1739991131829,-1192.02,0.00012517,2]
[353695942,1739991131839,-1134.66,0.00012517,2]
[353695943,1739991131849,-1387.53,0.00012517,2]
[353695944,1739991131859,-525.63,0.00012517,2]
[353695945,1739991131868,-1867.51,0.00012517,2]
[353695946,1739991131878,-1262.86,0.00012517,2]
[353695947,1739991131887,-1225.46,0.00012517,2]
[353695948,1739991131897,-1283.85,0.00012517,2]
[353695949,1739991131907,-1033.15,0.00012517,2]
[353695950,1739991131917,-1890.5,0.00012517,2]
[353695951,1739991131927,-182.042606,0.00012517,2]
[353695952,1739991131937,-1247.13,0.00012517,2]
[353695953,1739991131948,-953.52,0.00012517,2]
[353695954,1739991131957,-701.13,0.00012517,2]
[353695955,1739991131967,-606.51,0.00012517,2]
[353695956,1739991131977,-500.0,0.00012517,2]
[353695957,1739991131987,-837.99,0.00012517,2]
[353695958,1739991131996,-852.55,0.00012517,2]
[353695959,1739991132006,-1040.5,0.00012517,2]
[353695960,1739991132015,-626.51,0.00012517,2]
[353695961,1739991132024,-500.0,0.00012518,2]
[353695962,1739991132034,-711.12,0.00012518,2]
[353695963,1739991132044,-593.23384611,0.00012518,2]
[353695964,1739991132054,-567.75,0.00012518,2]
[353695965,1739991132065,-774.79,0.00012518,2]
[353695966,1739991132075,-648.92,0.00012518,2]
[353695967,1739991132085,-528.53196009,0.00012518,2]
[353695968,1739991132095,-939.76,0.00012518,2]
[353695969,1739991132104,-726.31,0.00012518,2]
[353695970,1739991132114,-527.6,0.00012518,2]
[353695971,1739991132123,-637.14,0.00012518,2]
[353695972,1739991132133,-501.4,0.00012518,2]
[353695973,1739991132142,-550.13,0.00012518,2]
[353695974,1739991132152,-665.455715,0.00012518,2]
[353695975,1739991132162,-605.64,0.00012518,2]
[353695976,1739991132171,-670.06,0.00012518,2]
[353695977,1739991132181,-383.03325435,0.00012518,2]
[353695978,1739991132191,-500.0,0.00012518,2]
[353695979,1739991132202,-329.43,0.00012518,2]
[353695980,1739991132212,-741.15,0.00012518,2]
[353695981,1739991132223,-917.52,0.00012518,2]
[353695982,1739991132232,-653.65,0.00012518,2]
[353695983,1739991132242,-500.0,0.00012518,2]
[353695984,1739991132253,-575.12,0.00012518,2]
[353695985,1739991132264,-500.0,0.00012518,2]
[353695986,1739991132274,-1008.4,0.00012518,2]
[353695987,1739991132284,-648.67,0.00012518,2]
[353695988,1739991132294,-709.82,0.00012518,2]
[353695989,1739991132304,-759.69,0.00012518,2]
[353695990,1739991132313,-939.45,0.00012518,2]
[353695991,1739991132323,-934.24,0.00012518,2]
[353695992,1739991132333,-1565.74,0.00012518,2]
[353695993,1739991132342,-779.39,0.00012518,2]
[353695994,1739991132352,-1114.74,0.00012518,2]
[353695995,1739991132362,-1307.87,0.00012518,2]
[353695996,1739991132372,-1563.31,0.00012518,2]
[353695997,1739991132382,-626.84,0.00012518,2]
[353695998,1739991132392,-500.0,0.00012518,2]
[353695999,1739991132401,-1098.62,0.00012518,2]
[353696000,1739991132411,-602.42,0.00012518,2]
[353696001,1739991132421,-1563.53,0.00012518,2]
[353696002,1739991132431,-1617.89,0.00012518,2]
[353696003,1739991132440,-568.32,0.00012518,2]
[353696004,1739991132449,-1902.45,0.00012518,2]
[353696005,1739991132459,-508.04109623,0.00012518,2]
[353696006,1739991132472,-997.72,0.00012518,2]
[353696007,1739991132482,-1224.85,0.00012518,2]
[353696008,1739991132492,-1076.75,0.00012518,2]
[353696009,1739991132503,-1287.1,0.00012518,2]
[353696010,1739991132512,-507.43,0.00012518,2]
[353696011,1739991132521,-1834.21,0.00012518,2]
[353696012,1739991132530,-1131.11,0.00012518,2]
[353696013,1739991132541,-1818.6,0.00012518,2]
[353696014,1739991132551,-500.0,0.00012518,2]
[353696015,1739991132560,-967.39,0.00012518,2]
[353696016,1739991132569,-613.64,0.00012518,2]
[353696017,1739991132579,-500.0,0.00012518,2]
[353696018,1739991132588,-1954.75,0.00012518,2]
[353696019,1739991132597,-1010.26,0.00012518,2]
[353696020,1739991132607,-500.0,0.00012518,2]
[353696021,1739991132616,-651.03,0.00012518,2]
[353696022,1739991132626,-825.62,0.00012518,2]
[353696023,1739991132636,-300.69908785,0.00012518,2]
[353696024,1739991132645,-1110.11,0.00012518,2]
[353696025,1739991132655,-774.36,0.00012518,2]
[353696026,1739991132664,-811.92,0.00012518,2]
[353696027,1739991132673,-1151.56,0.00012518,2]
[353696028,1739991132682,-500.0,0.00012518,2]
[353696029,1739991132691,-1042.18,0.00012518,2]
[353696030,1739991132702,-534.83,0.00012518,2]
[353696031,1739991132711,-619.91,0.00012518,2]
[353696032,1739991132721,-533.51,0.00012518,2]
[353696033,1739991132731,-581.26,0.00012518,2]
[353696034,1739991132740,-500.0,0.00012518,2]
[353696035,1739991132751,-849.02,0.00012518,2]
[353696036,1739991132760,-563.08,0.00012518,2]
[353696037,1739991132769,-758.16,0.00012518,2]
[353696038,1739991132779,-1285.43,0.00012598,2]
[353696039,1739991132788,-2055.78,0.00012598,2]
[353696040,1739991132798,-1176.26,0.00012598,2]
[353696041,1739991132807,-1598.02,0.00012598,2]
[353696042,1739991132816,-1177.64,0.00012598,2]
[353696043,1739991132826,-1728.13,0.00012598,2]
[353696044,1739991132836,-1464.57,0.00012598,2]
[353696045,1739991132846,-988.1,0.00012598,2]
[353696046,1739991132856,-1523.71,0.00012598,2]
[353696047,1739991132866,-1697.79,0.00012598,2]
[353696048,1739991132875,-914.84,0.00012598,2]
[353696049,1739991132884,-1345.01,0.00012598,2]
[353696050,1739991132894,-1899.5,0.00012598,2]
[353696051,1739991132903,-835.97,0.00012598,2]
[353696052,1739991132912,-1253.59,0.00012598,2]
[353696053,1739991132921,-676.35,0.00012598,2]
[353696054,1739991132931,-1199.2,0.00012598,2]
[353696055,1739991132940,-1444.06,0.00012598,2]
[353696056,1739991132950,-1165.51,0.00012598,2]
[353696057,1739991132960,-1110.09,0.00012598,2]
[353696058,1739991132970,-955.77,0.00012598,2]
[353696059,1739991132979,-1702.36,0.00012598,2]
[353696060,1739991132988,-500.0,0.00012598,2]
[353696061,1739991132998,-1068.07,0.00012598,2]
[353696062,1739991133007,-541.29,0.00012598,2]
[353696063,1739991133016,-564.03,0.00012599,2]
[353696064,1739991133026,-500.0,0.00012599,2]
[353696065,1739991133035,-958.09,0.00012599,2]
[353696066,1739991133045,-638.44,0.00012599,2]
[353696067,1739991133055,-1305.17,0.00012599,2]
[353696068,1739991133065,-335.282174,0.00012599,2]
[353696069,1739991133074,-1013.4,0.00012599,2]
[353696070,1739991133083,-445.363227,0.00012599,2]
[353696071,1739991133093,-800.82,0.00012599,2]
[353696072,1739991133103,-566.24,0.00012599,2]
[353696073,1739991133112,-705.7,0.00012599,2]
[353696074,1739991133121,-1291.22,0.00012599,2]
[353696075,1739991133131,-1007.94,0.00012599,2]
[353696076,1739991133139,-500.0,0.00012599,2]
[353696077,1739991133149,-1100.17,0.00012599,2]
[353696078,1739991133159,-1164.92,0.00012599,2]
[353696079,1739991133169,-1009.77,0.00012599,2]
[353696080,1739991133179,-1086.24,0.00012599,2]
[353696081,1739991133189,-1103.11,0.00012599,2]
[353696082,1739991133199,-500.0,0.00012599,2]
[353696083,1739991133209,-689.09,0.00012599,2]
[353696084,1739991133219,-1109.15,0.00012599,2]
[353696085,1739991133228,-752.25,0.00012599,2]
[353696086,1739991133237,-712.53,0.00012599,2]
[353696087,1739991133247,-844.15,0.00012599,2]
[353696088,1739991133257,-1035.94,0.00012599,2]
[353696089,1739991133266,-1177.99,0.00012599,2]
[353696090,1739991133276,-970.06,0.00012599,2]
[353696091,1739991133286,-842.16,0.00012599,2]
[353696092,1739991133296,-1231.95,0.00012599,2]
[353696093,1739991133305,-833.68,0.00012599,2]
[353696094,1739991133315,-1384.51,0.00012599,2]
[353696095,1739991133324,-992.43,0.00012599,2]
[353696096,1739991133334,-700.4,0.00012599,2]
[353696097,1739991133343,-896.41,0.00012599,2]
[353696098,1739991133352,-835.28,0.00012599,2]
[353696099,1739991133362,-730.1,0.00012599,2]
[353696100,1739991133372,-638.47,0.00012599,2]
[353696101,1739991133382,-722.91,0.00012599,2]
[353696102,1739991133391,-700.98,0.00012599,2]
[353696103,1739991133401,-500.0,0.00012599,2]
[353696104,1739991133410,-887.61,0.00012599,2]
[353696105,1739991133420,-1299.23,0.00012599,2]
[353696106,1739991133429,-537.11,0.00012599,2]
[353696107,1739991133439,-1023.26,0.00012599,2]
[353696108,1739991133448,-500.0,0.00012599,2]
[353696109,1739991133459,-1193.06,0.00012599,2]
[353696110,1739991133471,-809.28,0.00012599,2]
[353696111,1739991133480,-569.98,0.00012599,2]
[353696112,1739991133490,-947.29,0.00012599,2]
[353696113,1739991133499,-738.85,0.00012599,2]
[353696114,1739991133510,-309.69908072,0.00012599,2]
[353696115,1739991133518,-819.36,0.00012599,2]
[353696116,1739991133527,-504.01,0.00012599,2]
[353696117,1739991133537,-841.31,0.00012599,2]
[353696118,1739991133547,-716.57,0.00012599,2]
[353696119,1739991133557,-1059.78,0.00012599,2]
[353696120,1739991133566,-685.17,0.00012599,2]
[353696121,1739991133576,-948.49,0.00012599,2]
[353696122,1739991133586,-1210.93,0.00012599,2]
[353696123,1739991133595,-1232.61,0.00012599,2]
[353696124,1739991133604,-660.75,0.00012599,2]
[353696125,1739991133614,-722.62,0.00012599,2]
[353696126,1739991133623,-856.89,0.00012599,2]
[353696127,1739991133633,-529.4,0.00012599,2]
[353696128,1739991133642,-1123.65,0.00012599,2]
[353696129,1739991133652,-767.14,0.00012599,2]
[353696130,1739991133664,-838.25,0.00012599,2]
[353696131,1739991133674,-857.74,0.00012599,2]
[353696132,1739991133683,-702.31,0.00012599,2]
[353696133,1739991133692,-766.99,0.00012599,2]
[353696134,1739991133862,-1022.47,0.00012599,2]
[353696135,1739991133872,-1271.18,0.00012599,2]
[353696136,1739991133883,-562.14,0.00012599,2]
[353696137,1739991133892,-1255.93,0.00012599,2]
[353696138,1739991133901,-735.72,0.00012599,2]
[353696139,1739991133911,-1023.77,0.00012599,2]
[353696140,1739991133920,-741.16,0.00012599,2]
[353696141,1739991133930,-500.0,0.00012599,2]
[353696142,1739991133940,-1492.46,0.00012599,2]
[353696143,1739991133949,-1211.99,0.00012599,2]
[353696144,1739991133959,-908.55,0.00012599,2]
[353696145,1739991133969,-1115.3,0.00012599,2]
[353696146,1739991133980,-622.28,0.00012599,2]
[353696147,1739991133990,-725.41,0.00012599,2]
[353696148,1739991134000,-1312.13,0.00012599,2]
[353696149,1739991134010,-500.0,0.00012599,2]
[353696150,1739991134019,-1135.89,0.00012599,2]
[353696151,1739991134029,-626.24,0.00012599,2]
[353696152,1739991134039,-873.22,0.00012599,2]
[353696153,1739991134049,-828.64,0.00012599,2]
[353696154,1739991134059,-1067.13,0.00012599,2]
[353696155,1739991134069,-760.82,0.00012599,2]
[353696156,1739991134079,-959.81,0.00012599,2]
[353696157,1739991134089,-1130.2,0.00012599,2]
[353696158,1739991134098,-621.03,0.00012599,2]
[353696159,1739991134108,-837.8,0.00012599,2]
[353696160,1739991134117,-687.97,0.00012599,2]
[353696161,1739991134127,-524.85,0.00012599,2]
[353696162,1739991134136,-763.25,0.00012599,2]
[353696163,1739991134145,-1453.26,0.00012599,2]
[353696164,1739991134155,-2178.41,0.00012599,2]
[353696165,1739991134164,-2978.68,0.00012599,2]
[353696166,1739991134173,-867.64,0.00012599,2]
[353696167,1739991134185,-909.17,0.00012599,2]
[353696168,1739991134194,-944.41,0.00012599,2]
[353696169,1739991134205,-1335.65,0.00012599,2]
[353696170,1739991134215,-1536.77,0.00012599,2]
[353696171,1739991134225,-1667.3,0.00012599,2]
[353696172,1739991134234,-2300.26,0.00012599,2]
[353696173,1739991134243,-1054.96,0.00012599,2]
[353696174,1739991134252,-3967.01,0.00012599,2]
[353696175,1739991134262,-2151.49,0.00012599,2]
[353696176,1739991134271,-500.0,0.00012599,2]
[353696177,1739991134281,-1026.98,0.00012599,2]
[353696178,1739991134292,-1717.95,0.00012599,2]
[353696179,1739991134301,-716.98103854,0.00012599,2]
[353696180,1739991134637,-6.01896146,0.00012599,2]
[353696181,1739991134647,-858.82,0.00012599,2]
[353696182,1739991134658,-736.71,0.00012599,2]
[353696183,1739991134667,-731.07,0.00012599,2]
[353696184,1739991134676,-808.06,0.00012599,2]
[353696185,1739991134687,-500.0,0.00012599,2]
[353696186,1739991134697,-1003.52,0.00012599,2]
[353696187,1739991134708,-1216.45,0.00012599,2]
[353696188,1739991134717,-897.65,0.00012599,2]
[353696189,1739991134727,-969.77,0.00012599,2]
[353696190,1739991134736,-1228.25,0.00012599,2]
[353696191,1739991134746,-597.7,0.00012599,2]
[353696192,1739991134755,-330.12757385,0.00012599,2]
[353696193,1739991134765,-2264.91,0.00012599,2]
[353696194,1739991134775,-1031.26,0.00012599,2]
[353696195,1739991134785,-813.49,0.00012599,2]
[353696196,1739991134794,-93.91527696,0.00012599,2]
[353696197,1739991134806,-548.00952576,0.00012599,2]
[353696198,1739991135271,-500.0,0.0001153,2]
[353696199,1739991135282,-500.0,0.00011613,2]
[353696200,1739991135292,-500.0,0.00011695,2]
[353696201,1739991135302,-500.0,0.00011777,2]
[353696202,1739991135314,-500.0,0.00011859,2]
[353696203,1739991135324,-500.0,0.00011941,2]
[353696204,1739991135334,-500.0,0.00012024,2]
[353696205,1739991135344,-500.0,0.00012106,2]
[353696206,1739991135354,-500.0,0.00012188,2]
[353696207,1739991135364,-1225.45,0.0001227,2]
[353696208,1739991135374,-500.0,0.0001227,2]
[353696209,1739991135383,-1225.45,0.00012352,2]
[353696210,1739991135392,-500.0,0.00012352,2]
[353696211,1739991135403,-1380.32,0.00012433,2]
[353696212,1739991135413,-1225.45,0.00012435,2]
[353696213,1739991135424,-1380.32,0.00012516,2]
[353696214,1739991135434,-1225.45,0.00012517,2]
[353696215,1739991135444,-1380.32,0.00012598,2]
[353696216,1739991135454,-165.97519728,0.00012599,2]
[353696217,1739991135465,-952.43,0.00012599,2]
[353696218,1739991135476,-1249.19,0.00012599,2]
[353696219,1739991135486,-943.59,0.00012599,2]
[353696220,1739991135496,-1931.39,0.00012599,2]
[353696221,1739991135506,-699.69,0.00012599,2]
[353696222,1739991135516,-736.37,0.00012599,2]
[353696223,1739991135526,-1349.59,0.00012599,2]
[353696224,1739991135535,-2136.43,0.00012599,2]
[353696225,1739991135545,-763.21,0.00012599,2]
[353696226,1739991135555,-1308.13,0.00012599,2]
[353696227,1739991135564,-676.6,0.00012599,2]
[353696228,1739991135573,-1669.19,0.00012599,2]
[353696229,1739991135582,-2496.14,0.00012599,2]
[353696230,1739991135592,-838.79,0.00012599,2]
[353696231,1739991135602,-844.7,0.00012599,2]
[353696232,1739991135612,-1038.95,0.00012599,2]
[353696233,1739991135621,-643.34,0.00012599,2]
[353696234,1739991135630,-862.23,0.00012599,2]
[353696235,1739991135640,-1682.85,0.00012599,2]
[353696236,1739991135649,-1170.77,0.00012599,2]
[353696237,1739991135658,-972.98,0.00012599,2]
[353696238,1739991135667,-1036.38,0.00012599,2]
[353696239,1739991135677,-665.65,0.00012599,2]
[353696240,1739991135687,-816.32,0.00012599,2]
[353696241,1739991135697,-1472.21,0.00012599,2]
[353696242,1739991135710,-1143.91,0.00012599,2]
[353696243,1739991135719,-500.0,0.00012599,2]
[353696244,1739991135729,-7684.69,0.00012599,2]
[353696245,1739991135739,-1239.55,0.00012599,2]
[353696246,1739991135749,-1609.82,0.00012599,2]
[353696247,1739991135759,-694.56,0.00012599,2]
[353696248,1739991135768,-677.2,0.00012599,2]
[353696249,1739991135778,-1545.54,0.00012599,2]
[353696250,1739991135788,-1349.76,0.00012599,2]
[353696251,1739991135797,-1288.85,0.00012599,2]
[353696252,1739991135808,-591.57,0.00012599,2]
[353696253,1739991135818,-1045.64,0.00012599,2]
[353696254,1739991135827,-544.71,0.00012599,2]
[353696255,1739991135837,-515.07,0.00012599,2]
[353696256,1739991135847,-464.88008841,0.00012599,2]
[353696257,1739991135857,-864.21,0.00012599,2]
[353696258,1739991135866,-1217.73,0.00012599,2]
[353696259,1739991135875,-1242.44,0.00012599,2]
[353696260,1739991135886,-608.9,0.00012599,2]
[353696261,1739991135896,-48.55856455,0.00012599,2]
[353696262,1739991136166,-500.0,0.00012435,2]
[353696263,1739991136177,-428.34936677,0.00012517,2]
[353696264,1739991136187,-88.65615767,0.00012599,2]
[353696265,1739991136250,-437.56173112,0.00012599,2]
[353696266,1739991136260,-1333.33,0.00012599,2]
[353696267,1739991136270,-1213.81412508,0.00012599,2]
[353696268,1739991144307,1000.0,0.00010123,2]
[353696269,1739991195669,3509.82,0.00010054,2]
[353696270,1739991202923,150.82,8.767e-05,2]
[353696272,1739991306393,154.0,8.767e-05,3]
[353696273,1739991306630,154.0,9.545e-05,3]
[353696274,1739991306895,154.0,0.00010324,3]
[353696276,1739991323300,168.49,0.00010297,2]
[353696277,1739991361055,419.22,0.00010001,2]
[353696278,1739991513605,250.0,9.927e-05,2]
[353696279,1739991607061,154.0,8.767e-05,3]
[353696280,1739991607320,154.0,9.712e-05,3]
[353696281,1739991667643,157.98,9.961e-05,2]
[353696282,1739991713770,-151.78,0.00010507,2]
[353696283,1739991713792,-151.78,0.00010522,2]
[353696284,1739991713814,-151.78,0.00010537,2]
[353696285,1739991713836,-151.78,0.00010552,2]
[353696286,1739991713859,-199.26339684,0.00010558,2]
[353696287,1739991713882,-151.78,0.00010567,2]
[353696288,1739991713904,-151.78,0.00010582,2]
[353696289,1739991713926,-151.78,0.00010597,2]
[353696290,1739991713947,-151.78,0.00010612,2]
[353696291,1739991713969,-151.78,0.00010627,2]
[353696292,1739991713991,-151.78,0.00010642,2]
[353696293,1739991714012,-151.78,0.00010657,2]
[353696294,1739991714034,-154.0,0.00010657,3]
[353696295,1739991714056,-151.78,0.00010672,2]
[353696296,1739991714078,-151.78,0.00010687,2]
[353696297,1739991714099,-151.78,0.00010702,2]
[353696298,1739991714120,-151.78,0.00010717,2]
[353696299,1739991714142,-199.26339684,0.00010747,2]
[353696300,1739991714163,-300.0,0.00010879,2]
[353696301,1739991714184,-2442.77320632,0.0001088,2]
[353696302,1739991717066,918.77,8.605e-05,2]
[353696303,1739991860369,-918.77,0.00010869,2]
[353696304,1739991860398,-2557.22679368,0.0001088,2]
[353696305,1739991860423,-5500.0,0.0001088,2]
[353696306,1739991860446,-1900.0,0.0001088,2]
[353696307,1739991860470,-199.26339684,0.00010936,2]
[353696308,1739991860494,-3362.7289,0.00011003,2]
[353696309,1739991860519,-150.0,0.00011035,2]
[353696310,1739991860544,-500.0,0.00011036,2]
[353696311,1739991860570,-500.0,0.00011036,2]
[353696312,1739991860595,-500.0,0.00011036,2]
[353696313,1739991860620,-500.0,0.00011036,2]
[353696314,1739991860645,-500.0,0.00011036,2]
[353696315,1739991860939,-500.0,0.00011036,2]
[353696316,1739991860969,-500.0,0.00011036,2]
[353696317,1739991860994,-500.0,0.00011036,2]
[353696318,1739991861018,-500.0,0.00011036,2]
[353696319,1739991861042,-500.0,0.00011036,2]
[353696320,1739991861067,-500.0,0.00011036,2]
[353696321,1739991861092,-500.0,0.00011036,2]
[353696322,1739991861117,-500.0,0.00011036,2]
[353696323,1739991861142,-500.0,0.00011036,2]
[353696324,1739991861165,-500.0,0.00011036,2]
[353696325,1739991861189,-500.0,0.00011036,2]
[353696326,1739991861213,-500.0,0.00011036,2]
[353696327,1739991861238,-500.0,0.00011036,2]
[353696328,1739991861262,-500.0,0.00011036,2]
[353696329,1739991861287,-500.0,0.00011036,2]
[353696330,1739991861312,-500.0,0.00011036,2]
[353696331,1739991861337,-500.0,0.00011036,2]
[353696332,1739991861362,-500.0,0.00011036,2]
[353696333,1739991861387,-500.0,0.00011036,2]
[353696334,1739991861411,-500.0,0.00011036,2]
[353696335,1739991861436,-500.0,0.00011036,2]
[353696336,1739991861461,-500.0,0.00011036,2]
[353696337,1739991861485,-500.0,0.00011036,2]
[353696338,1739991861508,-500.0,0.00011036,2]
[353696339,1739991861533,-500.0,0.00011036,2]
[353696340,1739991861559,-500.0,0.00011036,2]